fUSD/lending_fUSD_20260617
["ID","MTS","AMOUNT","RATE_DAILY","PERIOD"]
[425339507,1781700664000,-438.24,0.00021273,2]
[425339500,1781700664000,-14078.30762202,0.00020951,2]
[425339501,1781700664000,-9999.99,0.00020951,2]
[425339499,1781700664000,-6498.89028221,0.00020951,2]
[425339498,1781700664000,-8069.36649992,0.00020951,2]
[425339496,1781700664000,-312.0,0.00016293,2]
[425339497,1781700664000,-537.0,0.00020951,2]
[425339504,1781700664000,-358.0,0.00021,2]
[425339511,1781700664000,-246.88946638,0.000214,2]
[425339503,1781700664000,-157.10129498,0.00021,2]
[425339517,1781700664000,-358.0,0.00022,2]
[425339519,1781700664000,-162.8,0.00022062,2]
[425339535,1781700664000,-151.0,0.00022647,2]
[425339533,1781700664000,-151.0,0.00022647,2]
[425339532,1781700664000,-151.0,0.00022647,2]
[425339531,1781700664000,-151.0,0.00022647,2]
[425339528,1781700664000,-151.0,0.00022647,2]
[425339529,1781700664000,-151.0,0.00022647,2]
[425339530,1781700664000,-151.0,0.00022647,2]
[425339524,1781700664000,-151.0,0.00022647,2]
[425339534,1781700664000,-151.0,0.00022647,2]
[425339526,1781700664000,-151.0,0.00022647,2]
[425339521,1781700664000,-282.59,0.00022466,2]
[425339520,1781700664000,-151.0,0.00022353,2]
[425339523,1781700664000,-151.0,0.00022647,2]
[425339518,1781700664000,-236.0,0.00022,2]
[425339522,1781700664000,-151.0,0.00022647,2]
[425339516,1781700664000,-5000.0,0.00021918,2]
[425339525,1781700664000,-151.0,0.00022647,2]
[425339527,1781700664000,-151.0,0.00022647,2]
[425339581,1781700665000,-500.0,0.00027081,2]
[425339564,1781700665000,-177.3,0.00025523,2]
[425339571,1781700665000,-176.62,0.00026027,7]
[425339573,1781700665000,-79387.4861911,0.00026037,2]
[425339572,1781700665000,-3146.116858,0.00026037,2]
[425339566,1781700665000,-438.24,0.00025786,2]
[425339568,1781700665000,-5528.0,0.000258,3]
[425339569,1781700665000,-179.59,0.00025811,7]
[425339563,1781700665000,-25117.67,0.00025486,7]
[425339576,1781700665000,-763.09960255,0.00026702,2]
[425339574,1781700665000,-161.98358862,0.00026196,2]
[425339585,1781700665000,-448.12610456,0.00027256,2]
[425339587,1781700665000,-1497.3979,0.00027297,2]
[425339575,1781700665000,-151.0,0.00026296,2]
[425339584,1781700665000,-508.0,0.00027137,2]
[425339582,1781700665000,-4218.3609242,0.00027082,2]
[425339577,1781700665000,-454.0,0.00026787,2]
[425339580,1781700665000,-451.0,0.00026787,2]
[425339578,1781700665000,-449.0,0.00026787,2]
[425339579,1781700665000,-399.0,0.00026787,2]
[425339583,1781700665000,-1637.5471796,0.00027127,2]
[425339589,1781700665000,-602.57,0.00027355,2]
[425339590,1781700665000,-500.0,0.00027355,2]
[425339593,1781700665000,-1000.0,0.00027356,2]
[425339570,1781700665000,-177.3,0.00025811,7]
[425339586,1781700665000,-815.06158649,0.00027276,2]
[425339565,1781700665000,-763.09960255,0.00025774,2]
[425339591,1781700665000,-628.44,0.00027355,2]
[425339557,1781700665000,-175.88,0.00024946,7]
[425339537,1781700665000,-236.0,0.00023,2]
[425339538,1781700665000,-563.79699157,0.00023974,2]
[425339536,1781700665000,-358.0,0.00023,2]
[425339542,1781700665000,-272.42,0.00024066,2]
[425339541,1781700665000,-441.0,0.00024,7]
[425339550,1781700665000,-151.0,0.00024537,2]
[425339544,1781700665000,-151.0,0.00024324,2]
[425339543,1781700665000,-247.26,0.0002411,2]
[425339539,1781700665000,-358.0,0.00024,2]
[425339549,1781700665000,-500.0,0.00024537,2]
[425339540,1781700665000,-236.0,0.00024,2]
[425339548,1781700665000,-646.65982734,0.00024537,2]
[425339567,1781700665000,-9138.44,0.00025786,2]
[425339547,1781700665000,-500.0,0.00024537,2]
[425339545,1781700665000,-218.46,0.00024409,2]
[425339555,1781700665000,-763.09960255,0.00024846,2]
[425339551,1781700665000,-1000.0,0.00024658,2]
[425339562,1781700665000,-176.0,0.00025476,2]
[425339552,1781700665000,-177.3,0.00024658,2]
[425339554,1781700665000,-58398.8861,0.00024786,2]
[425339553,1781700665000,-175.88,0.00024658,2]
[425339559,1781700665000,-239.0,0.00025,2]
[425339556,1781700665000,-177.3,0.00024946,7]
[425339558,1781700665000,-365.0,0.00025,2]
[425339561,1781700665000,-175.37,0.00025401,2]
[425339560,1781700665000,-177.3,0.00025234,30]
[425339546,1781700665000,-500.0,0.00024537,2]
[425339588,1781700665000,-21260.24,0.00027306,7]
[425339631,1781700665000,-1000.0,0.00027356,2]
[425339595,1781700665000,-1000.0,0.00027356,2]
[425339633,1781700665000,-1000.0,0.00027356,2]
[425339623,1781700665000,-1000.0,0.00027356,2]
[425339624,1781700665000,-1000.0,0.00027356,2]
[425339626,1781700665000,-1000.0,0.00027356,2]
[425339628,1781700665000,-1000.0,0.00027356,2]
[425339629,1781700665000,-1000.0,0.00027356,2]
[425339630,1781700665000,-1000.0,0.00027356,2]
[425339627,1781700665000,-1000.0,0.00027356,2]
[425339650,1781700665000,-1000.0,0.00027356,2]
[425339632,1781700665000,-1000.0,0.00027356,2]
[425339635,1781700665000,-1000.0,0.00027356,2]
[425339637,1781700665000,-1000.0,0.00027356,2]
[425339639,1781700665000,-1000.0,0.00027356,2]
[425339636,1781700665000,-1000.0,0.00027356,2]
[425339640,1781700665000,-1000.0,0.00027356,2]
[425339638,1781700665000,-1000.0,0.00027356,2]
[425339641,1781700665000,-1000.0,0.00027356,2]
[425339644,1781700665000,-1000.0,0.00027356,2]
[425339642,1781700665000,-1000.0,0.00027356,2]
[425339643,1781700665000,-1000.0,0.00027356,2]
[425339645,1781700665000,-1000.0,0.00027356,2]
[425339647,1781700665000,-1000.0,0.00027356,2]
[425339646,1781700665000,-1000.0,0.00027356,2]
[425339649,1781700665000,-1000.0,0.00027356,2]
[425339592,1781700665000,-500.0,0.00027355,2]
[425339622,1781700665000,-1000.0,0.00027356,2]
[425339625,1781700665000,-1000.0,0.00027356,2]
[425339648,1781700665000,-1000.0,0.00027356,2]
[425339619,1781700665000,-1000.0,0.00027356,2]
[425339594,1781700665000,-1000.0,0.00027356,2]
[425339597,1781700665000,-1000.0,0.00027356,2]
[425339596,1781700665000,-1000.0,0.00027356,2]
[425339598,1781700665000,-1000.0,0.00027356,2]
[425339606,1781700665000,-1000.0,0.00027356,2]
[425339607,1781700665000,-1000.0,0.00027356,2]
[425339599,1781700665000,-1000.0,0.00027356,2]
[425339634,1781700665000,-1000.0,0.00027356,2]
[425339610,1781700665000,-1000.0,0.00027356,2]
[425339609,1781700665000,-1000.0,0.00027356,2]
[425339605,1781700665000,-1000.0,0.00027356,2]
[425339603,1781700665000,-1000.0,0.00027356,2]
[425339604,1781700665000,-1000.0,0.00027356,2]
[425339608,1781700665000,-1000.0,0.00027356,2]
[425339601,1781700665000,-1000.0,0.00027356,2]
[425339616,1781700665000,-1000.0,0.00027356,2]
[425339602,1781700665000,-1000.0,0.00027356,2]
[425339617,1781700665000,-1000.0,0.00027356,2]
[425339618,1781700665000,-1000.0,0.00027356,2]
[425339614,1781700665000,-1000.0,0.00027356,2]
[425339615,1781700665000,-1000.0,0.00027356,2]
[425339612,1781700665000,-1000.0,0.00027356,2]
[425339621,1781700665000,-1000.0,0.00027356,2]
[425339620,1781700665000,-1000.0,0.00027356,2]
[425339611,1781700665000,-1000.0,0.00027356,2]
[425339600,1781700665000,-1000.0,0.00027356,2]
[425339613,1781700665000,-1000.0,0.00027356,2]
[425339689,1781700666000,-391.42,0.00027356,2]
[425339692,1781700666000,-928.24,0.00027397,2]
[425339691,1781700666000,-1000.0,0.00027397,2]
[425339685,1781700666000,-1000.0,0.00027356,2]
[425339680,1781700666000,-1000.0,0.00027356,2]
[425339684,1781700666000,-1000.0,0.00027356,2]
[425339681,1781700666000,-1000.0,0.00027356,2]
[425339682,1781700666000,-1000.0,0.00027356,2]
[425339683,1781700666000,-1000.0,0.00027356,2]
[425339686,1781700666000,-1000.0,0.00027356,2]
[425339690,1781700666000,-11124.9334909,0.00027391,2]
[425339709,1781700666000,-157.6,0.00028558,7]
[425339694,1781700666000,-1500.0,0.00027397,2]
[425339697,1781700666000,-153.32,0.000274,2]
[425339693,1781700666000,-209.89907891,0.00027397,2]
[425339696,1781700666000,-3446.84,0.00027397,10]
[425339687,1781700666000,-1000.0,0.00027356,2]
[425339688,1781700666000,-1000.0,0.00027356,2]
[425339708,1781700666000,-180.99,0.00028557,30]
[425339699,1781700666000,-500.0,0.000275,7]
[425339707,1781700666000,-156.33,0.00028517,2]
[425339700,1781700666000,-161.9835886,0.00027597,2]
[425339698,1781700666000,-153.32,0.000274,2]
[425339679,1781700666000,-1000.0,0.00027356,2]
[425339695,1781700666000,-406.19394558,0.00027397,2]
[425339678,1781700666000,-1000.0,0.00027356,2]
[425339662,1781700666000,-1000.0,0.00027356,2]
[425339666,1781700666000,-1000.0,0.00027356,2]
[425339702,1781700666000,-448.12610447,0.00027916,2]
[425339653,1781700666000,-1000.0,0.00027356,2]
[425339654,1781700666000,-1000.0,0.00027356,2]
[425339652,1781700666000,-1000.0,0.00027356,2]
[425339651,1781700666000,-1000.0,0.00027356,2]
[425339657,1781700666000,-1000.0,0.00027356,2]
[425339655,1781700666000,-1000.0,0.00027356,2]
[425339659,1781700666000,-1000.0,0.00027356,2]
[425339658,1781700666000,-1000.0,0.00027356,2]
[425339661,1781700666000,-1000.0,0.00027356,2]
[425339660,1781700666000,-1000.0,0.00027356,2]
[425339665,1781700666000,-1000.0,0.00027356,2]
[425339663,1781700666000,-1000.0,0.00027356,2]
[425339656,1781700666000,-1000.0,0.00027356,2]
[425339664,1781700666000,-1000.0,0.00027356,2]
[425339675,1781700666000,-1000.0,0.00027356,2]
[425339676,1781700666000,-1000.0,0.00027356,2]
[425339674,1781700666000,-1000.0,0.00027356,2]
[425339669,1781700666000,-1000.0,0.00027356,2]
[425339671,1781700666000,-1000.0,0.00027356,2]
[425339667,1781700666000,-1000.0,0.00027356,2]
[425339670,1781700666000,-1000.0,0.00027356,2]
[425339672,1781700666000,-1000.0,0.00027356,2]
[425339668,1781700666000,-1000.0,0.00027356,2]
[425339673,1781700666000,-1000.0,0.00027356,2]
[425339677,1781700666000,-1000.0,0.00027356,2]
[425339701,1781700666000,-763.09960255,0.00027631,2]
[425339704,1781700666000,-151.0,0.00028267,2]
[425339760,1781700666000,-2000.0,0.000291,2]
[425339740,1781700666000,-236.0,0.00028955,30]
[425339738,1781700666000,-152.0,0.00028955,30]
[425339739,1781700666000,-152.0,0.00028955,30]
[425339741,1781700666000,-157.0,0.00028955,30]
[425339743,1781700666000,-151.0,0.00028958,30]
[425339736,1781700666000,-156.33,0.00028926,30]
[425339742,1781700666000,-156.0,0.00028958,30]
[425339745,1781700666000,-358.0,0.00028958,30]
[425339756,1781700666000,-180.98,0.00029079,7]
[425339747,1781700666000,-153.0,0.00028958,30]
[425339746,1781700666000,-153.0,0.00028958,30]
[425339735,1781700666000,-157.6,0.00028921,30]
[425339744,1781700666000,-156.0,0.00028958,30]
[425339752,1781700666000,-156.33,0.00029028,7]
[425339750,1781700666000,-161.9835886,0.00028998,2]
[425339748,1781700666000,-157.6,0.00028973,2]
[425339751,1781700666000,-157.6,0.00029025,7]
[425339749,1781700666000,-156.33,0.00028977,2]
[425339754,1781700666000,-508.0,0.00029059,4]
[425339757,1781700666000,-156.33,0.00029079,30]
[425339761,1781700666000,-2000.0,0.000291,2]
[425339759,1781700666000,-181.0,0.00029087,7]
[425339703,1781700666000,-508.0,0.00028098,3]
[425339758,1781700666000,-180.99,0.00029083,7]
[425339753,1781700666000,-175.37,0.00029029,2]
[425339737,1781700666000,-160.0,0.00028955,30]
[425339755,1781700666000,-157.6,0.00029077,30]
[425339733,1781700666000,-156.33,0.00028874,7]
[425339706,1781700666000,-157.6,0.00028507,2]
[425339734,1781700666000,-2000.0,0.000289,2]
[425339710,1781700666000,-763.09960255,0.00028559,2]
[425339715,1781700666000,-171.36,0.00028588,30]
[425339712,1781700666000,-156.33,0.00028568,7]
[425339717,1781700666000,-156.33,0.00028619,30]
[425339714,1781700666000,-181.61,0.00028584,30]
[425339716,1781700666000,-157.6,0.0002861,30]
[425339713,1781700666000,-448.12610447,0.00028577,2]
[425339711,1781700666000,-181.0,0.00028563,30]
[425339718,1781700666000,-280.02,0.0002863,2]
[425339719,1781700666000,-157.6,0.00028662,2]
[425339720,1781700666000,-156.33,0.0002867,2]
[425339705,1781700666000,-200.92469043,0.00028276,7]
[425339721,1781700666000,-157.6,0.00028714,7]
[425339732,1781700666000,-157.6,0.00028869,7]
[425339723,1781700666000,-592.27,0.00028726,7]
[425339724,1781700666000,-157.6,0.00028766,30]
[425339730,1781700666000,-157.6,0.00028818,2]
[425339729,1781700666000,-1036.94,0.000288,30]
[425339726,1781700666000,-156.33,0.00028772,30]
[425339731,1781700666000,-156.33,0.00028823,2]
[425339727,1781700666000,-1359.0,0.00028787,2]
[425339728,1781700666000,-383.0,0.00028787,2]
[425339725,1781700666000,-406.19394558,0.00028766,2]
[425339722,1781700666000,-156.33,0.00028721,7]
[425339800,1781700667000,-4241.11,0.00029179,30]
[425339797,1781700667000,-151.0,0.00029176,7]
[425339801,1781700667000,-4241.11,0.00029179,7]
[425339799,1781700667000,-4241.11,0.00029179,2]
[425339802,1781700667000,-4241.11,0.00029179,2]
[425339792,1781700667000,-401.84938086,0.00029129,7]
[425339796,1781700667000,-2327.0,0.0002917,3]
[425339791,1781700667000,-196.05401877,0.00029129,5]
[425339787,1781700667000,-202.33211592,0.00029129,7]
[425339795,1781700667000,-156.33,0.0002913,2]
[425339793,1781700667000,-203.99030696,0.00029129,7]
[425339807,1781700667000,-152.0,0.00029226,3]
[425339794,1781700667000,-202.51055813,0.00029129,7]
[425339803,1781700667000,-4241.15,0.00029179,30]
[425339804,1781700667000,-157.6,0.00029181,7]
[425339805,1781700667000,-156.33,0.00029181,7]
[425339806,1781700667000,-228.41,0.00029212,14]
[425339810,1781700667000,-156.47,0.00029232,30]
[425339808,1781700667000,-302.02598244,0.00029226,3]
[425339809,1781700667000,-157.64,0.00029232,30]
[425339811,1781700667000,-448.12610447,0.00029237,2]
[425339812,1781700667000,-181.61,0.0002936,7]
[425339788,1781700667000,-236.10882355,0.00029129,7]
[425339798,1781700667000,-4241.11,0.00029179,7]
[425339784,1781700667000,-2546.658,0.00029127,22]
[425339814,1781700667000,-394.25461245,0.00029433,2]
[425339785,1781700667000,-190.271,0.00029127,22]
[425339762,1781700667000,-168.73277977,0.00029123,7]
[425339764,1781700667000,-196.76682747,0.00029123,7]
[425339765,1781700667000,-216.69615982,0.00029123,5]
[425339767,1781700667000,-204.58245068,0.00029123,7]
[425339763,1781700667000,-198.62962412,0.00029123,7]
[425339766,1781700667000,-189.2831374,0.00029123,7]
[425339768,1781700667000,-249.50007122,0.00029123,7]
[425339769,1781700667000,-205.78153488,0.00029123,7]
[425339778,1781700667000,-220.49200538,0.00029127,7]
[425339777,1781700667000,-150.28745398,0.00029123,2]
[425339779,1781700667000,-205.66495131,0.00029127,2]
[425339783,1781700667000,-249.52945176,0.00029127,7]
[425339771,1781700667000,-155.34897546,0.00029123,7]
[425339772,1781700667000,-154.67529848,0.00029123,7]
[425339776,1781700667000,-156.14482532,0.00029123,7]
[425339773,1781700667000,-150.53088043,0.00029123,7]
[425339774,1781700667000,-166.27953623,0.00029123,2]
[425339775,1781700667000,-150.93176068,0.00029123,2]
[425339780,1781700667000,-168.35468488,0.00029127,7]
[425339781,1781700667000,-255.82508754,0.00029127,7]
[425339790,1781700667000,-235.50510015,0.00029129,7]
[425339789,1781700667000,-253.35791119,0.00029129,7]
[425339782,1781700667000,-218.32322346,0.00029127,7]
[425339786,1781700667000,-157.6,0.00029129,2]
[425339770,1781700667000,-166.14990416,0.00029123,7]
[425339822,1781700667000,-170.17067009,0.00029691,7]
[425339830,1781700667000,-177.12696982,0.00029691,7]
[425339820,1781700667000,-378.55383114,0.00029691,7]
[425339845,1781700667000,-336.22379329,0.00029691,7]
[425339854,1781700667000,-426.66196277,0.00029691,7]
[425339848,1781700667000,-203.18865755,0.00029691,7]
[425339852,1781700667000,-332.29980833,0.00029691,7]
[425339855,1781700667000,-405.39963185,0.00029691,7]
[425339851,1781700667000,-233.97262355,0.00029691,7]
[425339850,1781700667000,-174.08276585,0.00029691,7]
[425339853,1781700667000,-310.69795093,0.00029691,7]
[425339849,1781700667000,-247.21875952,0.00029691,7]
[425339846,1781700667000,-237.47866217,0.00029691,7]
[425339857,1781700667000,-165.49040856,0.00029691,2]
[425339847,1781700667000,-265.84282166,0.00029691,7]
[425339861,1781700667000,-226.39028697,0.00029691,7]
[425339864,1781700667000,-331.42584623,0.00029691,7]
[425339862,1781700667000,-245.70421563,0.00029691,7]
[425339859,1781700667000,-311.31878383,0.00029691,7]
[425339858,1781700667000,-301.06176085,0.00029691,7]
[425339863,1781700667000,-435.49869073,0.00029691,7]
[425339866,1781700667000,-433.39231965,0.00029691,5]
[425339860,1781700667000,-393.53365495,0.00029691,7]
[425339865,1781700667000,-377.62593374,0.00029691,7]
[425339868,1781700667000,-301.86352135,0.00029691,2]
[425339867,1781700667000,-332.55907245,0.00029691,2]
[425339815,1781700667000,-763.09960255,0.00029487,2]
[425339856,1781700667000,-309.35059695,0.00029691,7]
[425339838,1781700667000,-410.45976411,0.00029691,7]
[425339869,1781700667000,-178.6763225,0.00029691,2]
[425339836,1781700667000,-336.63690439,0.00029691,7]
[425339819,1781700667000,-395.75489836,0.00029691,7]
[425339816,1781700667000,-150.0,0.00029534,2]
[425339817,1781700667000,-152.0,0.00029678,3]
[425339813,1781700667000,-171.36,0.00029362,7]
[425339818,1781700667000,-152.0,0.00029678,3]
[425339821,1781700667000,-167.75958112,0.00029691,7]
[425339823,1781700667000,-398.73026994,0.00029691,7]
[425339837,1781700667000,-300.79079754,0.00029691,7]
[425339825,1781700667000,-157.87178721,0.00029691,7]
[425339826,1781700667000,-164.55370188,0.00029691,7]
[425339833,1781700667000,-165.65618183,0.00029691,7]
[425339824,1781700667000,-365.64060062,0.00029691,7]
[425339829,1781700667000,-159.09428572,0.00029691,7]
[425339827,1781700667000,-167.5099656,0.00029691,7]
[425339831,1781700667000,-398.54967103,0.00029691,7]
[425339832,1781700667000,-177.0146178,0.00029691,7]
[425339839,1781700667000,-159.98959902,0.00029691,2]
[425339835,1781700667000,-160.69148491,0.00029691,7]
[425339840,1781700667000,-151.22218563,0.00029691,7]
[425339843,1781700667000,-161.17536081,0.00029691,7]
[425339844,1781700667000,-405.25800553,0.00029691,7]
[425339842,1781700667000,-232.87883147,0.00029691,7]
[425339834,1781700667000,-173.01626787,0.00029691,7]
[425339828,1781700667000,-211.33025571,0.00029691,7]
[425339841,1781700667000,-407.91833247,0.00029691,7]
[425339901,1781700668000,-309.57406745,0.00029698,7]
[425339908,1781700668000,-350.0,0.00029879,14]
[425339906,1781700668000,-500.0,0.00029855,2]
[425339900,1781700668000,-171.91201776,0.00029698,7]
[425339898,1781700668000,-356.23722584,0.00029698,7]
[425339903,1781700668000,-26864.43140295,0.00029703,7]
[425339899,1781700668000,-173.21498481,0.00029698,7]
[425339894,1781700668000,-602.7740713,0.00029698,7]
[425339907,1781700668000,-250.0,0.00029879,14]
[425339905,1781700668000,-454.32,0.00029828,8]
[425339915,1781700668000,-969.48613672,0.000299,2]
[425339904,1781700668000,-1642.0703,0.000298,2]
[425339909,1781700668000,-448.12610447,0.00029898,2]
[425339911,1781700668000,-969.48613672,0.000299,2]
[425339910,1781700668000,-969.48613672,0.000299,2]
[425339917,1781700668000,-969.48613672,0.000299,2]
[425339913,1781700668000,-969.48613672,0.000299,2]
[425339916,1781700668000,-969.48613672,0.000299,2]
[425339914,1781700668000,-969.48613672,0.000299,2]
[425339920,1781700668000,-160.0,0.00029955,30]
[425339912,1781700668000,-969.48613672,0.000299,2]
[425339891,1781700668000,-423.21546472,0.00029698,7]
[425339902,1781700668000,-433.76861676,0.00029698,7]
[425339893,1781700668000,-357.97829756,0.00029698,2]
[425339883,1781700668000,-472.21764709,0.00029698,7]
[425339890,1781700668000,-392.10803754,0.00029698,5]
[425339918,1781700668000,-969.48613672,0.000299,2]
[425339875,1781700668000,-440.98401077,0.00029695,7]
[425339872,1781700668000,-437.39317523,0.00029691,7]
[425339873,1781700668000,-378.5662748,0.00029691,7]
[425339876,1781700668000,-411.32990262,0.00029695,2]
[425339874,1781700668000,-300.57490795,0.00029691,2]
[425339870,1781700668000,-201.37116919,0.00029691,7]
[425339871,1781700668000,-227.38575425,0.00029691,7]
[425339877,1781700668000,-336.70936977,0.00029695,7]
[425339888,1781700668000,-316.66939815,0.00029698,7]
[425339878,1781700668000,-511.65017508,0.00029695,7]
[425339887,1781700668000,-369.34764417,0.00029698,7]
[425339880,1781700668000,-436.64644692,0.00029695,7]
[425339881,1781700668000,-499.05890353,0.00029695,7]
[425339884,1781700668000,-506.71582238,0.00029698,7]
[425339885,1781700668000,-471.01020031,0.00029698,7]
[425339886,1781700668000,-348.78876303,0.00029698,7]
[425339882,1781700668000,-404.66423184,0.00029698,7]
[425339879,1781700668000,-297.95197213,0.00029695,7]
[425339889,1781700668000,-169.10662874,0.00029698,7]
[425339892,1781700668000,-388.94952594,0.00029698,7]
[425339895,1781700668000,-173.67271354,0.00029698,7]
[425339897,1781700668000,-405.02111626,0.00029698,7]
[425339896,1781700668000,-407.98061392,0.00029698,7]
[425339919,1781700668000,-969.48613672,0.000299,2]
[425339928,1781700668000,-358.0,0.00029958,30]
[425339924,1781700668000,-157.0,0.00029955,30]
[425339948,1781700668000,-150.0,0.00030009,30]
[425339952,1781700668000,-150.0,0.00030033,30]
[425339954,1781700668000,-150.0,0.00030058,30]
[425339958,1781700668000,-1017.94666487,0.0003008,7]
[425339957,1781700668000,-150.0,0.00030072,30]
[425339961,1781700668000,-1036.94,0.000301,30]
[425339955,1781700668000,-429.76582013,0.0003006,30]
[425339960,1781700668000,-429.76582013,0.00030093,30]
[425339953,1781700668000,-150.0,0.00030035,30]
[425339956,1781700668000,-150.0,0.0003007,30]
[425339962,1781700668000,-200.0,0.000301,10]
[425339959,1781700668000,-969.48613672,0.00030085,2]
[425339964,1781700668000,-150.0,0.00030108,30]
[425339966,1781700668000,-150.0,0.00030125,30]
[425339968,1781700668000,-151.0,0.00030127,7]
[425339963,1781700668000,-150.0,0.00030107,30]
[425339921,1781700668000,-152.0,0.00029955,30]
[425339967,1781700668000,-429.76582013,0.00030127,30]
[425339970,1781700668000,-500.0,0.00030129,7]
[425339971,1781700668000,-500.0,0.00030129,7]
[425339969,1781700668000,-500.0,0.00030129,7]
[425339972,1781700668000,-500.0,0.00030129,7]
[425339973,1781700668000,-500.0,0.00030129,7]
[425339947,1781700668000,-344.17341642,0.0003,7]
[425339946,1781700668000,-344.17341642,0.0003,7]
[425339965,1781700668000,-150.0,0.0003011,30]
[425339944,1781700668000,-2499.99,0.0003,2]
[425339945,1781700668000,-2500.0,0.0003,2]
[425339923,1781700668000,-236.0,0.00029955,30]
[425339926,1781700668000,-151.0,0.00029958,30]
[425339922,1781700668000,-152.0,0.00029955,30]
[425339930,1781700668000,-153.0,0.00029958,30]
[425339929,1781700668000,-153.0,0.00029958,30]
[425339925,1781700668000,-156.0,0.00029958,30]
[425339933,1781700668000,-150.0,0.00029959,30]
[425339931,1781700668000,-150.22442172,0.00029959,30]
[425339932,1781700668000,-150.0,0.00029959,30]
[425339938,1781700668000,-429.76582013,0.00029959,30]
[425339927,1781700668000,-156.0,0.00029958,30]
[425339934,1781700668000,-150.0,0.00029959,30]
[425339936,1781700668000,-150.0,0.00029959,30]
[425339951,1781700668000,-429.76582013,0.00030026,30]
[425339942,1781700668000,-2500.0,0.0003,2]
[425339949,1781700668000,-150.0,0.00030014,30]
[425339943,1781700668000,-210.74161265,0.0003,2]
[425339950,1781700668000,-508.0,0.0003002,5]
[425339940,1781700668000,-429.76582013,0.00029993,30]
[425339941,1781700668000,-150.0,0.00029997,30]
[425339937,1781700668000,-150.0,0.00029959,30]
[425339935,1781700668000,-150.0,0.00029959,30]
[425339939,1781700668000,-150.0,0.00029959,30]
[425339996,1781700669000,-150.0,0.0003017,30]
[425339997,1781700669000,-260.0,0.0003017,30]
[425340012,1781700669000,-150.0,0.00030207,30]
[425339998,1781700669000,-150.0,0.00030176,2]
[425340000,1781700669000,-605.0,0.0003018,30]
[425339999,1781700669000,-215.0,0.00030176,2]
[425340002,1781700669000,-150.0,0.00030181,30]
[425340006,1781700669000,-239.63353567,0.00030199,4]
[425340001,1781700669000,-150.0,0.00030181,30]
[425340003,1781700669000,-150.0,0.00030186,30]
[425340005,1781700669000,-429.76582013,0.00030194,30]
[425340008,1781700669000,-150.0,0.000302,120]
[425340007,1781700669000,-228.19877863,0.000302,120]
[425340011,1781700669000,-300.0,0.000302,10]
[425339994,1781700669000,-429.76582013,0.00030161,30]
[425340004,1781700669000,-233.0,0.00030194,30]
[425339993,1781700669000,-150.0,0.00030158,30]
[425339976,1781700669000,-326175.30014151,0.0003013,7]
[425339991,1781700669000,-150.0,0.00030144,30]
[425339974,1781700669000,-771.5,0.00030129,7]
[425339978,1781700669000,-409.0,0.0003013,2]
[425339980,1781700669000,-181.63,0.00030136,2]
[425339977,1781700669000,-5038.15790217,0.0003013,2]
[425339979,1781700669000,-406.19394558,0.00030135,2]
[425339975,1781700669000,-500.0,0.00030129,2]
[425339981,1781700669000,-171.36,0.00030136,2]
[425339992,1781700669000,-150.0,0.00030148,30]
[425339983,1781700669000,-1000.0,0.00030137,30]
[425339985,1781700669000,-416.18534911,0.00030137,7]
[425339987,1781700669000,-1977.0,0.00030137,120]
[425339986,1781700669000,-1000.0,0.00030137,120]
[425339988,1781700669000,-180.0,0.00030137,120]